Workbook

Sheet IB RFR
L3: SMSA Inbound Request for Rates
L5: Owner/ Department : IBU-KWT, Sales
A7: KWT Sales - Request for Rates (RFR)
A9: Customer Details
A10: New A/c | B10: YES/NO | E10: Existing Account Number | J10: Company Name | N10: Royal Store
A11: Main Contact Name | J11: Company Activity
A12: Position | J12: P.O Box | O12: Website
A13: Email Id | J13: Pin Code | O13: CR.No
A14: Telephone | E14: Fax No | G14: NIL | J14: Physical Location
A16: Customer Shipping Profile & Monthly Revenue Forecast
A17: Product / Dest | B17: Zone 1 | D17: Zone 2 | F17: Zone 3 | H17: Zone 4 | J17: Zone 5 | L17: Zone 6 | N17: Zone 7 | P17: Zone 8 | R17: Zone 9 | T17: Zone 10
B18: Vol/Wk | C18: Price | D18: Vol/Wk | E18: Price | F18: Vol/Wk | G18: Price | H18: Vol/Wk | I18: Price | J18: Vol/Wk | K18: Price | L18: Vol/Wk | M18: Price | N18: Vol/Wk | O18: Price | P18: Vol/Wk | Q18: Price | R18: Vol/Wk | S18: Price | T18: Vol/Wk | U18: Price
A19: Intl Docs (SIDX) | B19: 0 | C19: =+B19*B21*B30 -> 0 | D19: 0 | E19: =+D19*D21*D30 -> 0 | F19: 0 | G19: =+F19*F21*F30 -> 0 | H19: 0 | I19: =+H19*H21*H30 -> 0 | J19: 0 | K19: =+J19*J21*J30 -> 0 | L19: 0 | M19: =+L19*L21*L30 -> 0 | N19: 0 | O19: =+N19*N21*N30 -> 0 | P19: 0 | Q19: =+P19*P21*P30 -> 0 | R19: 0 | S19: =+R19*R21*R30 -> 0 | T19: 0 | U19: =+T19*T21*T30 -> 0
A20: Intl Par (SIND) | B20: 0 | C20: =+B20*B22*B41 -> 0 | D20: 0 | E20: =+D20*D22*D41 -> 0 | F20: 0 | G20: =+F20*F22*F41 -> 0 | H20: 0 | I20: =+H20*H22*H41 -> 0 | J20: 0 | K20: =+J20*J22*J41 -> 0 | L20: 0 | M20: =+L20*L22*L41 -> 0 | N20: 0 | O20: =+N20*N22*N41 -> 0 | P20: 0 | Q20: =+P20*P22*P41 -> 0 | R20: 0 | S20: =+R20*R22*R41 -> 0 | T20: 0 | U20: =+T20*T22*T41 -> 0
A21: Avg Wt. (SIDX) | B21: 0 | D21: 1 | F21: 1 | H21: 1 | J21: 1 | L21: 1 | N21: 1 | P21: 1 | R21: 1 | T21: 1
A22: Avg Wt. (SIND) | B22: 1 | D22: 1 | F22: 1 | H22: 1 | J22: 1 | L22: 1 | N22: 1 | P22: 1 | R22: 1 | T22: 1
P23: Totlal Revenue (KWD) | S23: =+(C19+C20+E19+E20+G19+G20+I19+I20+K19+K20+M19+M20+O19+O20+Q19+Q20+S19+S20+U19+U20)*4 -> 0
A24: Requested International Rates
A25: Product/Dest | B25: Zone 1 | C25: % | D25: Zone 2 | E25: % | F25: Zone 3 | G25: % | H25: Zone 4 | I25: % | J25: Zone 5 | K25: % | L25: Zone 6 | M25: % | N25: Zone 7 | O25: % | P25: Zone 8 | Q25: % | R25: Zone 9 | S25: % | T25: Zone 10 | U25: %
B26: =+Tariff!$E$26 -> KWT/IB/GMT | D26: =+Tariff!$E$26 -> KWT/IB/GMT | F26: =+Tariff!$E$26 -> KWT/IB/GMT | H26: =+Tariff!$E$26 -> KWT/IB/GMT | J26: =+Tariff!$E$26 -> KWT/IB/GMT | L26: =+Tariff!$E$26 -> KWT/IB/GMT | N26: =+Tariff!$E$26 -> KWT/IB/GMT | P26: =+Tariff!$E$26 -> KWT/IB/GMT | R26: =+Tariff!$E$26 -> KWT/IB/GMT | T26: =+Tariff!$E$26 -> KWT/IB/GMT
B27: Price | D27: Price | F27: Price | H27: Price | J27: Price | L27: Price | N27: Price | P27: Price | R27: Price | T27: Price
A28: SMSA Intl Doc (SIDX) &Non Docs (SIND)
A29: 0.5 | B29: 0 | D29: 0 | F29: 0 | H29: 0 | J29: 0 | L29: 0 | N29: 0 | P29: 0 | R29: =Tariff!M3 -> 0 | T29: =+Tariff!N3 -> 0
A30: 1 | B30: 0 | D30: 0 | F30: 0 | H30: 0 | J30: 0 | L30: 0 | N30: 0 | P30: 0 | R30: =Tariff!M4 -> 0 | T30: =+Tariff!N4 -> 0
A31: 1.5 | B31: 0 | D31: 0 | F31: 0 | H31: 0 | J31: 0 | L31: 0 | N31: 0 | P31: 0 | R31: =Tariff!M5 -> 0 | T31: =+Tariff!N5 -> 0
A32: 2 | B32: 0 | D32: 0 | F32: 0 | H32: 0 | J32: 0 | L32: 0 | N32: 0 | P32: 0 | R32: =Tariff!M6 -> 0 | T32: =+Tariff!N6 -> 0
A33: 2.5 | B33: 0 | D33: 0 | F33: 0 | H33: 0 | J33: 0 | L33: 0 | N33: 0 | P33: 0 | R33: =Tariff!M7 -> 0 | T33: =+Tariff!N7 -> 0
A34: 3 | B34: 0 | D34: 0 | F34: 0 | H34: 0 | J34: 0 | L34: 0 | N34: 0 | P34: 0 | R34: =Tariff!M8 -> 0 | T34: =+Tariff!N8 -> 0
A35: 3.5 | B35: 0 | D35: 0 | F35: 0 | H35: 0 | J35: 0 | L35: 0 | N35: 0 | P35: 0 | R35: =Tariff!M9 -> 0 | T35: =+Tariff!N9 -> 0
A36: 4 | B36: 0 | D36: 0 | F36: 0 | H36: 0 | J36: 0 | L36: 0 | N36: 0 | P36: 0 | R36: =Tariff!M10 -> 0 | T36: =+Tariff!N10 -> 0
A37: 4.5 | B37: 0 | D37: 0 | F37: 0 | H37: 0 | J37: 0 | L37: 0 | N37: 0 | P37: 0 | R37: =Tariff!M11 -> 0 | T37: =+Tariff!N11 -> 0
A38: 5 | B38: 0 | D38: 0 | F38: 0 | H38: 0 | J38: 0 | L38: 0 | N38: 0 | P38: 0 | R38: =Tariff!M12 -> 0 | T38: =+Tariff!N12 -> 0
A39: 5.5 | B39: 0 | D39: 0 | F39: 0 | H39: 0 | J39: 0 | L39: 0 | N39: 0 | P39: 0 | R39: =Tariff!M13 -> 0 | T39: =+Tariff!N13 -> 0
A40: 6 | B40: 0 | D40: 0 | F40: 0 | H40: 0 | J40: 0 | L40: 0 | N40: 0 | P40: 0 | R40: =Tariff!M14 -> 0 | T40: =+Tariff!N14 -> 0
A41: 6.5 | B41: 0 | D41: 0 | F41: 0 | H41: 0 | J41: 0 | L41: 0 | N41: 0 | P41: 0 | R41: =Tariff!M15 -> 0 | T41: =+Tariff!N15 -> 0
A42: 7 | B42: 0 | D42: 0 | F42: 0 | H42: 0 | J42: 0 | L42: 0 | N42: 0 | P42: 0 | R42: =Tariff!M16 -> 0 | T42: =+Tariff!N16 -> 0
A43: 7.5 | B43: 0 | D43: 0 | F43: 0 | H43: 0 | J43: 0 | L43: 0 | N43: 0 | P43: 0 | R43: =Tariff!M17 -> 0 | T43: =+Tariff!N17 -> 0
A44: 8 | B44: 0 | D44: 0 | F44: 0 | H44: 0 | J44: 0 | L44: 0 | N44: 0 | P44: 0 | R44: =Tariff!M18 -> 0 | T44: =+Tariff!N18 -> 0
A45: 8.5 | B45: 0 | D45: 0 | F45: 0 | H45: 0 | J45: 0 | L45: 0 | N45: 0 | P45: 0 | R45: =Tariff!M19 -> 0 | T45: =+Tariff!N19 -> 0
A46: 9 | B46: 0 | D46: 0 | F46: 0 | H46: 0 | J46: 0 | L46: 0 | N46: 0 | P46: 0 | R46: =Tariff!M20 -> 0 | T46: =+Tariff!N20 -> 0
A47: 9.5 | B47: 0 | D47: 0 | F47: 0 | H47: 0 | J47: 0 | L47: 0 | N47: 0 | P47: 0 | R47: =Tariff!M21 -> 0 | T47: =+Tariff!N21 -> 0
A48: 10 | B48: 0 | D48: 0 | F48: 0 | H48: 0 | J48: 0 | L48: 0 | N48: 0 | P48: 0 | R48: =Tariff!M22 -> 0 | T48: =+Tariff!N22 -> 0
A49: +10KG add KG | B49: 0 | D49: 0 | F49: 0 | H49: 0 | J49: 0 | L49: 0 | N49: 0 | P49: 0 | R49: =Tariff!M23 -> 0 | T49: =+Tariff!N23 -> 0
A50: Remarks/ Additional Information
A57: Requested By
A58: Sales Person | I58: Date | N58: Signature
A60: Approvals
A61: Sales Manager | C61: Shaji Joby | G61: Date | L61: Signature
A62: BDM | C62: Christopher Mendes | G62: Date
A63: Finance Manager | C63: Sanjay Bandale | G63: Date | L63: Signature
A64: CGM, KWT | C64: Shaji George | G64: Date | L64: Signature
A65: Commercial Manager | C65: Shibu George | G65: Date | L65: Signature
A66: Director, IBU | C66: Mohannad M.S. Khayyat | G66: Date | L66: Signature
A67: Sales Coordinator:

Sheet Tariff
D1: TRANSFER RATES TO MAIN SHEET | O1: CASH RATES | Z1: TELESALES TARIFF | AK1: FIELD SALES TARIFF | AV1: SALES MANAGER TARIFF | BG1: GENERAL MANAGER TARIFF - % | BR1: CUSTOMIZED TARIFF | CC1: PERSONALIZED TARIFF %
E2: Z1 | F2: Z2 | G2: Z3 | H2: Z4 | I2: Z5 | J2: Z6 | K2: Z7 | L2: Z8 | M2: Z9 | N2: Z10 | P2: Z1 | Q2: Z2 | R2: Z3 | S2: Z4 | T2: Z5 | U2: Z6 | V2: Z7 | W2: Z8 | X2: Z9 | Y2: Z10 | AA2: Z1 | AB2: Z2 | AC2: Z3 | AD2: Z4 | AE2: Z5 | AF2: Z6 | AG2: Z7 | AH2: Z8 | AI2: Z9 | AJ2: Z10 | AL2: Z1 | AM2: Z2 | AN2: Z3 | AO2: Z4 | AP2: Z5 | AQ2: Z6 | AR2: Z7 | AS2: Z8 | AT2: Z9 | AU2: Z10 | AW2: Z1 | AX2: Z2 | AY2: Z3 | AZ2: Z4 | BA2: Z5 | BB2: Z6 | BC2: Z7 | BD2: Z8 | BE2: Z9 | BF2: Z10 | BH2: Z1 | BI2: Z2 | BJ2: Z3 | BK2: Z4 | BL2: Z5 | BM2: Z6 | BN2: Z7 | BO2: Z8 | BP2: Z9 | BQ2: Z10 | BS2: Z1 | BT2: Z2 | BU2: Z3 | BV2: Z4 | BW2: Z5 | BX2: Z6 | BY2: Z7 | BZ2: Z8 | CA2: Z9 | CB2: Z10 | CD2: Z1 | CE2: Z2 | CF2: Z3 | CG2: Z4 | CH2: Z5 | CI2: Z6 | CJ2: Z7 | CK2: Z8 | CL2: Z9 | CM2: Z10
D3: 0.5 | E3: =+E30 -> 5.175775 | F3: =+F30 -> 6.05605 | G3: 6.35855 | H3: 6.8047375 | I3: 8.5063 | J3: 8.9313125 | K3: 10.2713875 | L3: 11.6084375 | M3: 0 | N3: 0 | O3: 0.5 | P3: 20.7031 | Q3: 24.2242 | R3: 25.4342 | S3: 27.21895 | T3: 34.0252 | U3: 35.72525 | V3: 41.08555 | W3: 46.43375 | X3: 0 | Y3: 0 | Z3: 0.5 | AA3: 12.42186 | AB3: 14.53452 | AC3: 15.26052 | AD3: 16.33137 | AE3: 20.41512 | AF3: 21.43515 | AG3: 24.65133 | AH3: 27.86025 | AI3: 0 | AJ3: 0 | AK3: 0.5 | AL3: 8.28124 | AM3: 9.68968 | AN3: 10.17368 | AO3: 10.88758 | AP3: 13.61008 | AQ3: 14.2901 | AR3: 16.43422 | AS3: 18.5735 | AT3: 0 | AU3: 0 | AV3: 0.5 | AW3: 7.246085 | AX3: 8.47847 | AY3: 8.90197 | AZ3: 9.5266325 | BA3: 11.90882 | BB3: 12.5038375 | BC3: 14.3799425 | BD3: 16.2518125 | BE3: 0 | BF3: 0 | BG3: 0.5 | BH3: 5.175775 | BI3: 6.05605 | BJ3: 6.35855 | BK3: 6.8047375 | BL3: 8.5063 | BM3: 8.9313125 | BN3: 10.2713875 | BO3: 11.6084375 | BP3: 0 | BQ3: 0 | BR3: 0.5 | BS3: =P3-(P3*CD3) -> 20.7031 | BT3: =Q3-(Q3*CE3) -> 24.2242 | BU3: 25.4342 | BV3: 27.21895 | BW3: 34.0252 | BX3: 35.72525 | BY3: 41.08555 | BZ3: 46.43375 | CA3: 0 | CB3: 0 | CC3: 0.5 | CD3: 0 | CE3: 0 | CF3: 0 | CG3: 0 | CH3: 0 | CI3: 0 | CJ3: 0 | CK3: 0 | CL3: 0 | CM3: 0
D4: 1 | E4: =+E31 -> 5.629525 | F4: 6.5703 | G4: 6.8985125 | H4: 7.3825125 | I4: 9.229275 | J4: 9.6905875 | K4: 11.1441 | L4: 12.5945875 | M4: 0 | N4: 0 | O4: 1 | P4: 22.5181 | Q4: 26.2812 | R4: 27.59405 | S4: 29.53005 | T4: 36.9171 | U4: 38.76235 | V4: 44.5764 | W4: 50.37835 | X4: 0 | Y4: 0 | Z4: 1 | AA4: 13.51086 | AB4: 15.76872 | AC4: 16.55643 | AD4: 17.71803 | AE4: 22.15026 | AF4: 23.25741 | AG4: 26.74584 | AH4: 30.22701 | AI4: 0 | AJ4: 0 | AK4: 1 | AL4: 9.00724 | AM4: 10.51248 | AN4: 11.03762 | AO4: 11.81202 | AP4: 14.76684 | AQ4: 15.50494 | AR4: 17.83056 | AS4: 20.15134 | AT4: 0 | AU4: 0 | AV4: 1 | AW4: 7.881335 | AX4: 9.19842 | AY4: 9.6579175 | AZ4: 10.3355175 | BA4: 12.920985 | BB4: 13.5668225 | BC4: 15.60174 | BD4: 17.6324225 | BE4: 0 | BF4: 0 | BG4: 1 | BH4: 5.629525 | BI4: 6.5703 | BJ4: 6.8985125 | BK4: 7.3825125 | BL4: 9.229275 | BM4: 9.6905875 | BN4: 11.1441 | BO4: 12.5945875 | BP4: 0 | BQ4: 0 | BR4: 1 | BS4: =P4-(P4*CD4) -> 22.5181 | BT4: 26.2812 | BU4: 27.59405 | BV4: 29.53005 | BW4: 36.9171 | BX4: 38.76235 | BY4: 44.5764 | BZ4: 50.37835 | CA4: 0 | CB4: 0 | CC4: 1 | CD4: 0 | CE4: 0 | CF4: 0 | CG4: 0 | CH4: 0 | CI4: 0 | CJ4: 0 | CK4: 0 | CL4: 0 | CM4: 0
D5: 1.5 | E5: =+E32 -> 6.083275 | F5: 7.08455 | G5: 7.438475 | H5: 7.9602875 | I5: 9.95225 | J5: 10.4498625 | K5: 12.0168125 | L5: 13.5807375 | M5: 0 | N5: 0 | O5: 1.5 | P5: 24.3331 | Q5: 28.3382 | R5: 29.7539 | S5: 31.84115 | T5: 39.809 | U5: 41.79945 | V5: 48.06725 | W5: 54.32295 | X5: 0 | Y5: 0 | Z5: 1.5 | AA5: 14.59986 | AB5: 17.00292 | AC5: 17.85234 | AD5: 19.10469 | AE5: 23.8854 | AF5: 25.07967 | AG5: 28.84035 | AH5: 32.59377 | AI5: 0 | AJ5: 0 | AK5: 1.5 | AL5: 9.73324 | AM5: 11.33528 | AN5: 11.90156 | AO5: 12.73646 | AP5: 15.9236 | AQ5: 16.71978 | AR5: 19.2269 | AS5: 21.72918 | AT5: 0 | AU5: 0 | AV5: 1.5 | AW5: 8.516585 | AX5: 9.91837 | AY5: 10.413865 | AZ5: 11.1444025 | BA5: 13.93315 | BB5: 14.6298075 | BC5: 16.8235375 | BD5: 19.0130325 | BE5: 0 | BF5: 0 | BG5: 1.5 | BH5: 6.083275 | BI5: 7.08455 | BJ5: 7.438475 | BK5: 7.9602875 | BL5: 9.95225 | BM5: 10.4498625 | BN5: 12.0168125 | BO5: 13.5807375 | BP5: 0 | BQ5: 0 | BR5: 1.5 | BS5: 24.3331 | BT5: 28.3382 | BU5: 29.7539 | BV5: 31.84115 | BW5: 39.809 | BX5: 41.79945 | BY5: 48.06725 | BZ5: 54.32295 | CA5: 0 | CB5: 0 | CC5: 1.5 | CD5: 0 | CE5: 0 | CF5: 0 | CG5: 0 | CH5: 0 | CI5: 0 | CJ5: 0 | CK5: 0 | CL5: 0 | CM5: 0
D6: 2 | E6: =+E33 -> 6.537025 | F6: 7.5988 | G6: 7.9784375 | H6: 8.5380625 | I6: 10.675225 | J6: 11.2091375 | K6: 12.889525 | L6: 14.5668875 | M6: 0 | N6: 0 | O6: 2 | P6: 26.1481 | Q6: 30.3952 | R6: 31.91375 | S6: 34.15225 | T6: 42.7009 | U6: 44.83655 | V6: 51.5581 | W6: 58.26755 | X6: 0 | Y6: 0 | Z6: 2 | AA6: 15.68886 | AB6: 18.23712 | AC6: 19.14825 | AD6: 20.49135 | AE6: 25.62054 | AF6: 26.90193 | AG6: 30.93486 | AH6: 34.96053 | AI6: 0 | AJ6: 0 | AK6: 2 | AL6: 10.45924 | AM6: 12.15808 | AN6: 12.7655 | AO6: 13.6609 | AP6: 17.08036 | AQ6: 17.93462 | AR6: 20.62324 | AS6: 23.30702 | AT6: 0 | AU6: 0 | AV6: 2 | AW6: 9.151835 | AX6: 10.63832 | AY6: 11.1698125 | AZ6: 11.9532875 | BA6: 14.945315 | BB6: 15.6927925 | BC6: 18.045335 | BD6: 20.3936425 | BE6: 0 | BF6: 0 | BG6: 2 | BH6: 6.537025 | BI6: 7.5988 | BJ6: 7.9784375 | BK6: 8.5380625 | BL6: 10.675225 | BM6: 11.2091375 | BN6: 12.889525 | BO6: 14.5668875 | BP6: 0 | BQ6: 0 | BR6: 2 | BS6: 26.1481 | BT6: 30.3952 | BU6: 31.91375 | BV6: 34.15225 | BW6: 42.7009 | BX6: 44.83655 | BY6: 51.5581 | BZ6: 58.26755 | CA6: 0 | CB6: 0 | CC6: 2 | CD6: 0 | CE6: 0 | CF6: 0 | CG6: 0 | CH6: 0 | CI6: 0 | CJ6: 0 | CK6: 0 | CL6: 0 | CM6: 0
D7: 2.5 | E7: =+E34 -> 6.990775 | F7: 8.11305 | G7: 8.5184 | H7: 9.1158375 | I7: 11.3982 | J7: 11.9684125 | K7: 13.7622375 | L7: 15.5530375 | M7: 0 | N7: 0 | O7: 2.5 | P7: 27.9631 | Q7: 32.4522 | R7: 34.0736 | S7: 36.46335 | T7: 45.5928 | U7: 47.87365 | V7: 55.04895 | W7: 62.21215 | X7: 0 | Y7: 0 | Z7: 2.5 | AA7: 16.77786 | AB7: 19.47132 | AC7: 20.44416 | AD7: 21.87801 | AE7: 27.35568 | AF7: 28.72419 | AG7: 33.02937 | AH7: 37.32729 | AI7: 0 | AJ7: 0 | AK7: 2.5 | AL7: 11.18524 | AM7: 12.98088 | AN7: 13.62944 | AO7: 14.58534 | AP7: 18.23712 | AQ7: 19.14946 | AR7: 22.01958 | AS7: 24.88486 | AT7: 0 | AU7: 0 | AV7: 2.5 | AW7: 9.787085 | AX7: 11.35827 | AY7: 11.92576 | AZ7: 12.7621725 | BA7: 15.95748 | BB7: 16.7557775 | BC7: 19.2671325 | BD7: 21.7742525 | BE7: 0 | BF7: 0 | BG7: 2.5 | BH7: 6.990775 | BI7: 8.11305 | BJ7: 8.5184 | BK7: 9.1158375 | BL7: 11.3982 | BM7: 11.9684125 | BN7: 13.7622375 | BO7: 15.5530375 | BP7: 0 | BQ7: 0 | BR7: 0.5 | BS7: 27.9631 | BT7: 32.4522 | BU7: 34.0736 | BV7: 36.46335 | BW7: 45.5928 | BX7: 47.87365 | BY7: 55.04895 | BZ7: 62.21215 | CA7: 0 | CB7: 0 | CC7: 0.5 | CD7: 0 | CE7: 0 | CF7: 0 | CG7: 0 | CH7: 0 | CI7: 0 | CJ7: 0 | CK7: 0 | CL7: 0 | CM7: 0
D8: 3 | E8: =+E35 -> 8.170525 | F8: 9.447075 | G8: 9.9204875 | H8: 10.6162375 | I8: 13.2737 | J8: 13.9392 | K8: 16.0279625 | L8: 18.1152125 | M8: 0 | N8: 0 | O8: 3 | P8: 32.6821 | Q8: 37.7883 | R8: 39.68195 | S8: 42.46495 | T8: 53.0948 | U8: 55.7568 | V8: 64.11185 | W8: 72.46085 | X8: 0 | Y8: 0 | Z8: 3 | AA8: 19.60926 | AB8: 22.67298 | AC8: 23.80917 | AD8: 25.47897 | AE8: 31.85688 | AF8: 33.45408 | AG8: 38.46711 | AH8: 43.47651 | AI8: 0 | AJ8: 0 | AK8: 3 | AL8: 13.07284 | AM8: 15.11532 | AN8: 15.87278 | AO8: 16.98598 | AP8: 21.23792 | AQ8: 22.30272 | AR8: 25.64474 | AS8: 28.98434 | AT8: 0 | AU8: 0 | AV8: 3 | AW8: 11.438735 | AX8: 13.225905 | AY8: 13.8886825 | AZ8: 14.8627325 | BA8: 18.58318 | BB8: 19.51488 | BC8: 22.4391475 | BD8: 25.3612975 | BE8: 0 | BF8: 0 | BG8: 3 | BH8: 8.170525 | BI8: 9.447075 | BJ8: 9.9204875 | BK8: 10.6162375 | BL8: 13.2737 | BM8: 13.9392 | BN8: 16.0279625 | BO8: 18.1152125 | BP8: 0 | BQ8: 0 | BR8: 1 | BS8: 32.6821 | BT8: 37.7883 | BU8: 39.68195 | BV8: 42.46495 | BW8: 53.0948 | BX8: 55.7568 | BY8: 64.11185 | BZ8: 72.46085 | CA8: 0 | CB8: 0 | CC8: 1 | CD8: 0 | CE8: 0 | CF8: 0 | CG8: 0 | CH8: 0 | CI8: 0 | CJ8: 0 | CK8: 0 | CL8: 0 | CM8: 0
D9: 3.5 | E9: =+E36 -> 9.350275 | F9: 10.7811 | G9: 11.322575 | H9: 12.1166375 | I9: 15.1492 | J9: 15.9099875 | K9: 18.2936875 | L9: 20.6773875 | M9: 0 | N9: 0 | O9: 3.5 | P9: 37.4011 | Q9: 43.1244 | R9: 45.2903 | S9: 48.46655 | T9: 60.5968 | U9: 63.63995 | V9: 73.17475 | W9: 82.70955 | X9: 0 | Y9: 0 | Z9: 3.5 | AA9: 22.44066 | AB9: 25.87464 | AC9: 27.17418 | AD9: 29.07993 | AE9: 36.35808 | AF9: 38.18397 | AG9: 43.90485 | AH9: 49.62573 | AI9: 0 | AJ9: 0 | AK9: 3.5 | AL9: 14.96044 | AM9: 17.24976 | AN9: 18.11612 | AO9: 19.38662 | AP9: 24.23872 | AQ9: 25.45598 | AR9: 29.2699 | AS9: 33.08382 | AT9: 0 | AU9: 0 | AV9: 3.5 | AW9: 13.090385 | AX9: 15.09354 | AY9: 15.851605 | AZ9: 16.9632925 | BA9: 21.20888 | BB9: 22.2739825 | BC9: 25.6111625 | BD9: 28.9483425 | BE9: 0 | BF9: 0 | BG9: 3.5 | BH9: 9.350275 | BI9: 10.7811 | BJ9: 11.322575 | BK9: 12.1166375 | BL9: 15.1492 | BM9: 15.9099875 | BN9: 18.2936875 | BO9: 20.6773875 | BP9: 0 | BQ9: 0 | BR9: 1.5 | BS9: 37.4011 | BT9: 43.1244 | BU9: 45.2903 | BV9: 48.46655 | BW9: 60.5968 | BX9: 63.63995 | BY9: 73.17475 | BZ9: 82.70955 | CA9: 0 | CB9: 0 | CC9: 1.5 | CD9: 0 | CE9: 0 | CF9: 0 | CG9: 0 | CH9: 0 | CI9: 0 | CJ9: 0 | CK9: 0 | CL9: 0 | CM9: 0
D10: 4 | E10: =+E37 -> 10.530025 | F10: 12.115125 | G10: 12.7246625 | H10: 13.6170375 | I10: 17.0247 | J10: 17.880775 | K10: 20.5594125 | L10: 23.2395625 | M10: 0 | N10: 0 | O10: 4 | P10: 42.1201 | Q10: 48.4605 | R10: 50.89865 | S10: 54.46815 | T10: 68.0988 | U10: 71.5231 | V10: 82.23765 | W10: 92.95825 | X10: 0 | Y10: 0 | Z10: 4 | AA10: 25.27206 | AB10: 29.0763 | AC10: 30.53919 | AD10: 32.68089 | AE10: 40.85928 | AF10: 42.91386 | AG10: 49.34259 | AH10: 55.77495 | AI10: 0 | AJ10: 0 | AK10: 4 | AL10: 16.84804 | AM10: 19.3842 | AN10: 20.35946 | AO10: 21.78726 | AP10: 27.23952 | AQ10: 28.60924 | AR10: 32.89506 | AS10: 37.1833 | AT10: 0 | AU10: 0 | AV10: 4 | AW10: 14.742035 | AX10: 16.961175 | AY10: 17.8145275 | AZ10: 19.0638525 | BA10: 23.83458 | BB10: 25.033085 | BC10: 28.7831775 | BD10: 32.5353875 | BE10: 0 | BF10: 0 | BG10: 4 | BH10: 10.530025 | BI10: 12.115125 | BJ10: 12.7246625 | BK10: 13.6170375 | BL10: 17.0247 | BM10: 17.880775 | BN10: 20.5594125 | BO10: 23.2395625 | BP10: 0 | BQ10: 0 | BR10: 2 | BS10: 42.1201 | BT10: 48.4605 | BU10: 50.89865 | BV10: 54.46815 | BW10: 68.0988 | BX10: 71.5231 | BY10: 82.23765 | BZ10: 92.95825 | CA10: 0 | CB10: 0 | CC10: 2 | CD10: 0 | CE10: 0 | CF10: 0 | CG10: 0 | CH10: 0 | CI10: 0 | CJ10: 0 | CK10: 0 | CL10: 0 | CM10: 0
D11: 4.5 | E11: =+E38 -> 11.709775 | F11: 13.44915 | G11: 14.12675 | H11: 15.1174375 | I11: 18.9002 | J11: 19.8515625 | K11: 22.8251375 | L11: 25.8017375 | M11: 0 | N11: 0 | O11: 4.5 | P11: 46.8391 | Q11: 53.7966 | R11: 56.507 | S11: 60.46975 | T11: 75.6008 | U11: 79.40625 | V11: 91.30055 | W11: 103.20695 | X11: 0 | Y11: 0 | Z11: 4.5 | AA11: 28.10346 | AB11: 32.27796 | AC11: 33.9042 | AD11: 36.28185 | AE11: 45.36048 | AF11: 47.64375 | AG11: 54.78033 | AH11: 61.92417 | AI11: 0 | AJ11: 0 | AK11: 4.5 | AL11: 18.73564 | AM11: 21.51864 | AN11: 22.6028 | AO11: 24.1879 | AP11: 30.24032 | AQ11: 31.7625 | AR11: 36.52022 | AS11: 41.28278 | AT11: 0 | AU11: 0 | AV11: 4.5 | AW11: 16.393685 | AX11: 18.82881 | AY11: 19.77745 | AZ11: 21.1644125 | BA11: 26.46028 | BB11: 27.7921875 | BC11: 31.9551925 | BD11: 36.1224325 | BE11: 0 | BF11: 0 | BG11: 4.5 | BH11: 11.709775 | BI11: 13.44915 | BJ11: 14.12675 | BK11: 15.1174375 | BL11: 18.9002 | BM11: 19.8515625 | BN11: 22.8251375 | BO11: 25.8017375 | BP11: 0 | BQ11: 0 | BR11: 2.5 | BS11: 46.8391 | BT11: 53.7966 | BU11: 56.507 | BV11: 60.46975 | BW11: 75.6008 | BX11: 79.40625 | BY11: 91.30055 | BZ11: 103.20695 | CA11: 0 | CB11: 0 | CC11: 2.5 | CD11: 0 | CE11: 0 | CF11: 0 | CG11: 0 | CH11: 0 | CI11: 0 | CJ11: 0 | CK11: 0 | CL11: 0 | CM11: 0
D12: 5 | E12: =+E39 -> 12.889525 | F12: 14.783175 | G12: 15.5288375 | H12: 16.6178375 | I12: 20.7757 | J12: 21.82235 | K12: 25.0908625 | L12: 28.3639125 | M12: 0 | N12: 0 | O12: 5 | P12: 51.5581 | Q12: 59.1327 | R12: 62.11535 | S12: 66.47135 | T12: 83.1028 | U12: 87.2894 | V12: 100.36345 | W12: 113.45565 | X12: 0 | Y12: 0 | Z12: 5 | AA12: 30.93486 | AB12: 35.47962 | AC12: 37.26921 | AD12: 39.88281 | AE12: 49.86168 | AF12: 52.37364 | AG12: 60.21807 | AH12: 68.07339 | AI12: 0 | AJ12: 0 | AK12: 5 | AL12: 20.62324 | AM12: 23.65308 | AN12: 24.84614 | AO12: 26.58854 | AP12: 33.24112 | AQ12: 34.91576 | AR12: 40.14538 | AS12: 45.38226 | AT12: 0 | AU12: 0 | AV12: 5 | AW12: 18.045335 | AX12: 20.696445 | AY12: 21.7403725 | AZ12: 23.2649725 | BA12: 29.08598 | BB12: 30.55129 | BC12: 35.1272075 | BD12: 39.7094775 | BE12: 0 | BF12: 0 | BG12: 5 | BH12: 12.889525 | BI12: 14.783175 | BJ12: 15.5288375 | BK12: 16.6178375 | BL12: 20.7757 | BM12: 21.82235 | BN12: 25.0908625 | BO12: 28.3639125 | BP12: 0 | BQ12: 0 | BR12: 3 | BS12: 51.5581 | BT12: 59.1327 | BU12: 62.11535 | BV12: 66.47135 | BW12: 83.1028 | BX12: 87.2894 | BY12: 100.36345 | BZ12: 113.45565 | CA12: 0 | CB12: 0 | CC12: 3 | CD12: 0 | CE12: 0 | CF12: 0 | CG12: 0 | CH12: 0 | CI12: 0 | CJ12: 0 | CK12: 0 | CL12: 0 | CM12: 0
D13: 5.5 | E13: =+E40 -> 14.069275 | F13: 16.1172 | G13: 16.930925 | H13: 18.1182375 | I13: 22.6512 | J13: 23.7931375 | K13: 27.3565875 | L13: 30.9260875 | M13: 0 | N13: 0 | O13: 5.5 | P13: 56.2771 | Q13: 64.4688 | R13: 67.7237 | S13: 72.47295 | T13: 90.6048 | U13: 95.17255 | V13: 109.42635 | W13: 123.70435 | X13: 0 | Y13: 0 | Z13: 5.5 | AA13: 33.76626 | AB13: 38.68128 | AC13: 40.63422 | AD13: 43.48377 | AE13: 54.36288 | AF13: 57.10353 | AG13: 65.65581 | AH13: 74.22261 | AI13: 0 | AJ13: 0 | AK13: 5.5 | AL13: 22.51084 | AM13: 25.78752 | AN13: 27.08948 | AO13: 28.98918 | AP13: 36.24192 | AQ13: 38.06902 | AR13: 43.77054 | AS13: 49.48174 | AT13: 0 | AU13: 0 | AV13: 5.5 | AW13: 19.696985 | AX13: 22.56408 | AY13: 23.703295 | AZ13: 25.3655325 | BA13: 31.71168 | BB13: 33.3103925 | BC13: 38.2992225 | BD13: 43.2965225 | BE13: 0 | BF13: 0 | BG13: 5.5 | BH13: 14.069275 | BI13: 16.1172 | BJ13: 16.930925 | BK13: 18.1182375 | BL13: 22.6512 | BM13: 23.7931375 | BN13: 27.3565875 | BO13: 30.9260875 | BP13: 0 | BQ13: 0 | BR13: 3.5 | BS13: 56.2771 | BT13: 64.4688 | BU13: 67.7237 | BV13: 72.47295 | BW13: 90.6048 | BX13: 95.17255 | BY13: 109.42635 | BZ13: 123.70435 | CA13: 0 | CB13: 0 | CC13: 3.5 | CD13: 0 | CE13: 0 | CF13: 0 | CG13: 0 | CH13: 0 | CI13: 0 | CJ13: 0 | CK13: 0 | CL13: 0 | CM13: 0
D14: 6 | E14: =+E41 -> 15.249025 | F14: 17.451225 | G14: 18.3330125 | H14: 19.6186375 | I14: 24.5267 | J14: 25.763925 | K14: 29.6223125 | L14: 33.4882625 | M14: 0 | N14: 0 | O14: 6 | P14: 60.9961 | Q14: 69.8049 | R14: 73.33205 | S14: 78.47455 | T14: 98.1068 | U14: 103.0557 | V14: 118.48925 | W14: 133.95305 | X14: 0 | Y14: 0 | Z14: 6 | AA14: 36.59766 | AB14: 41.88294 | AC14: 43.99923 | AD14: 47.08473 | AE14: 58.86408 | AF14: 61.83342 | AG14: 71.09355 | AH14: 80.37183 | AI14: 0 | AJ14: 0 | AK14: 6 | AL14: 24.39844 | AM14: 27.92196 | AN14: 29.33282 | AO14: 31.38982 | AP14: 39.24272 | AQ14: 41.22228 | AR14: 47.3957 | AS14: 53.58122 | AT14: 0 | AU14: 0 | AV14: 6 | AW14: 21.348635 | AX14: 24.431715 | AY14: 25.6662175 | AZ14: 27.4660925 | BA14: 34.33738 | BB14: 36.069495 | BC14: 41.4712375 | BD14: 46.8835675 | BE14: 0 | BF14: 0 | BG14: 6 | BH14: 15.249025 | BI14: 17.451225 | BJ14: 18.3330125 | BK14: 19.6186375 | BL14: 24.5267 | BM14: 25.763925 | BN14: 29.6223125 | BO14: 33.4882625 | BP14: 0 | BQ14: 0 | BR14: 4 | BS14: 60.9961 | BT14: 69.8049 | BU14: 73.33205 | BV14: 78.47455 | BW14: 98.1068 | BX14: 103.0557 | BY14: 118.48925 | BZ14: 133.95305 | CA14: 0 | CB14: 0 | CC14: 4 | CD14: 0 | CE14: 0 | CF14: 0 | CG14: 0 | CH14: 0 | CI14: 0 | CJ14: 0 | CK14: 0 | CL14: 0 | CM14: 0
D15: 6.5 | E15: =+E42 -> 16.428775 | F15: 18.78525 | G15: 19.7351 | H15: 21.1190375 | I15: 26.4022 | J15: 27.7347125 | K15: 31.8880375 | L15: 36.0504375 | M15: 0 | N15: 0 | O15: 6.5 | P15: 65.7151 | Q15: 75.141 | R15: 78.9404 | S15: 84.47615 | T15: 105.6088 | U15: 110.93885 | V15: 127.55215 | W15: 144.20175 | X15: 0 | Y15: 0 | Z15: 6.5 | AA15: 39.42906 | AB15: 45.0846 | AC15: 47.36424 | AD15: 50.68569 | AE15: 63.36528 | AF15: 66.56331 | AG15: 76.53129 | AH15: 86.52105 | AI15: 0 | AJ15: 0 | AK15: 6.5 | AL15: 26.28604 | AM15: 30.0564 | AN15: 31.57616 | AO15: 33.79046 | AP15: 42.24352 | AQ15: 44.37554 | AR15: 51.02086 | AS15: 57.6807 | AT15: 0 | AU15: 0 | AV15: 6.5 | AW15: 23.000285 | AX15: 26.29935 | AY15: 27.62914 | AZ15: 29.5666525 | BA15: 36.96308 | BB15: 38.8285975 | BC15: 44.6432525 | BD15: 50.4706125 | BE15: 0 | BF15: 0 | BG15: 6.5 | BH15: 16.428775 | BI15: 18.78525 | BJ15: 19.7351 | BK15: 21.1190375 | BL15: 26.4022 | BM15: 27.7347125 | BN15: 31.8880375 | BO15: 36.0504375 | BP15: 0 | BQ15: 0 | BR15: 4.5 | BS15: 65.7151 | BT15: 75.141 | BU15: 78.9404 | BV15: 84.47615 | BW15: 105.6088 | BX15: 110.93885 | BY15: 127.55215 | BZ15: 144.20175 | CA15: 0 | CB15: 0 | CC15: 4.5 | CD15: 0 | CE15: 0 | CF15: 0 | CG15: 0 | CH15: 0 | CI15: 0 | CJ15: 0 | CK15: 0 | CL15: 0 | CM15: 0
D16: 7 | E16: =+E43 -> 17.608525 | F16: 20.119275 | G16: 21.1371875 | H16: 22.6194375 | I16: 28.2777 | J16: 29.7055 | K16: 34.1537625 | L16: 38.6126125 | M16: 0 | N16: 0 | O16: 7 | P16: 70.4341 | Q16: 80.4771 | R16: 84.54875 | S16: 90.47775 | T16: 113.1108 | U16: 118.822 | V16: 136.61505 | W16: 154.45045 | X16: 0 | Y16: 0 | Z16: 7 | AA16: 42.26046 | AB16: 48.28626 | AC16: 50.72925 | AD16: 54.28665 | AE16: 67.86648 | AF16: 71.2932 | AG16: 81.96903 | AH16: 92.67027 | AI16: 0 | AJ16: 0 | AK16: 7 | AL16: 28.17364 | AM16: 32.19084 | AN16: 33.8195 | AO16: 36.1911 | AP16: 45.24432 | AQ16: 47.5288 | AR16: 54.64602 | AS16: 61.78018 | AT16: 0 | AU16: 0 | AV16: 7 | AW16: 24.651935 | AX16: 28.166985 | AY16: 29.5920625 | AZ16: 31.6672125 | BA16: 39.58878 | BB16: 41.5877 | BC16: 47.8152675 | BD16: 54.0576575 | BE16: 0 | BF16: 0 | BG16: 7 | BH16: 17.608525 | BI16: 20.119275 | BJ16: 21.1371875 | BK16: 22.6194375 | BL16: 28.2777 | BM16: 29.7055 | BN16: 34.1537625 | BO16: 38.6126125 | BP16: 0 | BQ16: 0 | BR16: 5 | BS16: 70.4341 | BT16: 80.4771 | BU16: 84.54875 | BV16: 90.47775 | BW16: 113.1108 | BX16: 118.822 | BY16: 136.61505 | BZ16: 154.45045 | CA16: 0 | CB16: 0 | CC16: 5 | CD16: 0 | CE16: 0 | CF16: 0 | CG16: 0 | CH16: 0 | CI16: 0 | CJ16: 0 | CK16: 0 | CL16: 0 | CM16: 0
D17: 7.5 | E17: =+E44 -> 18.788275 | F17: 21.4533 | G17: 22.539275 | H17: 24.1198375 | I17: 30.1532 | J17: 31.6762875 | K17: 36.4194875 | L17: 41.1747875 | M17: 0 | N17: 0 | O17: 7.5 | P17: 75.1531 | Q17: 85.8132 | R17: 90.1571 | S17: 96.47935 | T17: 120.6128 | U17: 126.70515 | V17: 145.67795 | W17: 164.69915 | X17: 0 | Y17: 0 | Z17: 7.5 | AA17: 45.09186 | AB17: 51.48792 | AC17: 54.09426 | AD17: 57.88761 | AE17: 72.36768 | AF17: 76.02309 | AG17: 87.40677 | AH17: 98.81949 | AI17: 0 | AJ17: 0 | AK17: 7.5 | AL17: 30.06124 | AM17: 34.32528 | AN17: 36.06284 | AO17: 38.59174 | AP17: 48.24512 | AQ17: 50.68206 | AR17: 58.27118 | AS17: 65.87966 | AT17: 0 | AU17: 0 | AV17: 7.5 | AW17: 26.303585 | AX17: 30.03462 | AY17: 31.554985 | AZ17: 33.7677725 | BA17: 42.21448 | BB17: 44.3468025 | BC17: 50.9872825 | BD17: 57.6447025 | BE17: 0 | BF17: 0 | BG17: 7.5 | BH17: 18.788275 | BI17: 21.4533 | BJ17: 22.539275 | BK17: 24.1198375 | BL17: 30.1532 | BM17: 31.6762875 | BN17: 36.4194875 | BO17: 41.1747875 | BP17: 0 | BQ17: 0 | BR17: 5.5 | BS17: 75.1531 | BT17: 85.8132 | BU17: 90.1571 | BV17: 96.47935 | BW17: 120.6128 | BX17: 126.70515 | BY17: 145.67795 | BZ17: 164.69915 | CA17: 0 | CB17: 0 | CC17: 5.5 | CD17: 0 | CE17: 0 | CF17: 0 | CG17: 0 | CH17: 0 | CI17: 0 | CJ17: 0 | CK17: 0 | CL17: 0 | CM17: 0
D18: 8 | E18: =+E45 -> 19.968025 | F18: 22.787325 | G18: 23.9413625 | H18: 25.6202375 | I18: 32.0287 | J18: 33.647075 | K18: 38.6852125 | L18: 43.7369625 | M18: 0 | N18: 0 | O18: 8 | P18: 79.8721 | Q18: 91.1493 | R18: 95.76545 | S18: 102.48095 | T18: 128.1148 | U18: 134.5883 | V18: 154.74085 | W18: 174.94785 | X18: 0 | Y18: 0 | Z18: 8 | AA18: 47.92326 | AB18: 54.68958 | AC18: 57.45927 | AD18: 61.48857 | AE18: 76.86888 | AF18: 80.75298 | AG18: 92.84451 | AH18: 104.96871 | AI18: 0 | AJ18: 0 | AK18: 8 | AL18: 31.94884 | AM18: 36.45972 | AN18: 38.30618 | AO18: 40.99238 | AP18: 51.24592 | AQ18: 53.83532 | AR18: 61.89634 | AS18: 69.97914 | AT18: 0 | AU18: 0 | AV18: 8 | AW18: 27.955235 | AX18: 31.902255 | AY18: 33.5179075 | AZ18: 35.8683325 | BA18: 44.84018 | BB18: 47.105905 | BC18: 54.1592975 | BD18: 61.2317475 | BE18: 0 | BF18: 0 | BG18: 8 | BH18: 19.968025 | BI18: 22.787325 | BJ18: 23.9413625 | BK18: 25.6202375 | BL18: 32.0287 | BM18: 33.647075 | BN18: 38.6852125 | BO18: 43.7369625 | BP18: 0 | BQ18: 0 | BR18: 6 | BS18: 79.8721 | BT18: 91.1493 | BU18: 95.76545 | BV18: 102.48095 | BW18: 128.1148 | BX18: 134.5883 | BY18: 154.74085 | BZ18: 174.94785 | CA18: 0 | CB18: 0 | CC18: 6 | CD18: 0 | CE18: 0 | CF18: 0 | CG18: 0 | CH18: 0 | CI18: 0 | CJ18: 0 | CK18: 0 | CL18: 0 | CM18: 0
D19: 8.5 | E19: =+E46 -> 21.147775 | F19: 24.12135 | G19: 25.34345 | H19: 27.1206375 | I19: 33.9042 | J19: 35.6178625 | K19: 40.9509375 | L19: 46.2991375 | M19: 0 | N19: 0 | O19: 8.5 | P19: 84.5911 | Q19: 96.4854 | R19: 101.3738 | S19: 108.48255 | T19: 135.6168 | U19: 142.47145 | V19: 163.80375 | W19: 185.19655 | X19: 0 | Y19: 0 | Z19: 8.5 | AA19: 50.75466 | AB19: 57.89124 | AC19: 60.82428 | AD19: 65.08953 | AE19: 81.37008 | AF19: 85.48287 | AG19: 98.28225 | AH19: 111.11793 | AI19: 0 | AJ19: 0 | AK19: 8.5 | AL19: 33.83644 | AM19: 38.59416 | AN19: 40.54952 | AO19: 43.39302 | AP19: 54.24672 | AQ19: 56.98858 | AR19: 65.5215 | AS19: 74.07862 | AT19: 0 | AU19: 0 | AV19: 8.5 | AW19: 29.606885 | AX19: 33.76989 | AY19: 35.48083 | AZ19: 37.9688925 | BA19: 47.46588 | BB19: 49.8650075 | BC19: 57.3313125 | BD19: 64.8187925 | BE19: 0 | BF19: 0 | BG19: 8.5 | BH19: 21.147775 | BI19: 24.12135 | BJ19: 25.34345 | BK19: 27.1206375 | BL19: 33.9042 | BM19: 35.6178625 | BN19: 40.9509375 | BO19: 46.2991375 | BP19: 0 | BQ19: 0 | BR19: 6.5 | BS19: 84.5911 | BT19: =Q19-(Q19*CE19) -> 96.4854 | BU19: =R19-(R19*CF19) -> 101.3738 | BV19: =S19-(S19*CG19) -> 108.48255 | BW19: =T19-(T19*CH19) -> 135.6168 | BX19: =U19-(U19*CI19) -> 142.47145 | BY19: =V19-(V19*CJ19) -> 163.80375 | BZ19: =W19-(W19*CK19) -> 185.19655 | CA19: =X19-(X19*CL19) -> 0 | CB19: =Y19-(Y19*CM19) -> 0 | CC19: 6.5 | CD19: 0 | CE19: 0 | CF19: 0 | CG19: 0 | CH19: 0 | CI19: 0 | CJ19: 0 | CK19: 0 | CL19: 0 | CM19: 0
D20: 9 | E20: =+E47 -> 22.327525 | F20: 25.455375 | G20: 26.7455375 | H20: 28.6210375 | I20: 35.7797 | J20: 37.58865 | K20: 43.2166625 | L20: 48.8613125 | M20: 0 | N20: 0 | O20: 9 | P20: 89.3101 | Q20: 101.8215 | R20: 106.98215 | S20: 114.48415 | T20: 143.1188 | U20: 150.3546 | V20: 172.86665 | W20: 195.44525 | X20: 0 | Y20: 0 | Z20: 9 | AA20: 53.58606 | AB20: 61.0929 | AC20: 64.18929 | AD20: 68.69049 | AE20: 85.87128 | AF20: 90.21276 | AG20: 103.71999 | AH20: 117.26715 | AI20: 0 | AJ20: 0 | AK20: 9 | AL20: 35.72404 | AM20: 40.7286 | AN20: 42.79286 | AO20: 45.79366 | AP20: 57.24752 | AQ20: 60.14184 | AR20: 69.14666 | AS20: 78.1781 | AT20: 0 | AU20: 0 | AV20: 9 | AW20: 31.258535 | AX20: 35.637525 | AY20: 37.4437525 | AZ20: 40.0694525 | BA20: 50.09158 | BB20: 52.62411 | BC20: 60.5033275 | BD20: 68.4058375 | BE20: 0 | BF20: 0 | BG20: 9 | BH20: 22.327525 | BI20: 25.455375 | BJ20: 26.7455375 | BK20: 28.6210375 | BL20: 35.7797 | BM20: 37.58865 | BN20: 43.2166625 | BO20: 48.8613125 | BP20: 0 | BQ20: 0 | BR20: 7 | BS20: 89.3101 | BT20: 101.8215 | BU20: 106.98215 | BV20: 114.48415 | BW20: 143.1188 | BX20: 150.3546 | BY20: 172.86665 | BZ20: 195.44525 | CA20: 0 | CB20: 0 | CC20: 7 | CD20: 0 | CE20: 0 | CF20: 0 | CG20: 0 | CH20: 0 | CI20: 0 | CJ20: 0 | CK20: 0 | CL20: 0 | CM20: 0
D21: 9.5 | E21: =+E48 -> 23.507275 | F21: 26.7894 | G21: 28.147625 | H21: 30.1214375 | I21: 37.6552 | J21: 39.5594375 | K21: 45.4823875 | L21: 51.4234875 | M21: 0 | N21: 0 | O21: 9.5 | P21: 94.0291 | Q21: 107.1576 | R21: 112.5905 | S21: 120.48575 | T21: 150.6208 | U21: 158.23775 | V21: 181.92955 | W21: 205.69395 | X21: 0 | Y21: 0 | Z21: 9.5 | AA21: 56.41746 | AB21: 64.29456 | AC21: 67.5543 | AD21: 72.29145 | AE21: 90.37248 | AF21: 94.94265 | AG21: 109.15773 | AH21: 123.41637 | AI21: 0 | AJ21: 0 | AK21: 9.5 | AL21: 37.61164 | AM21: 42.86304 | AN21: 45.0362 | AO21: 48.1943 | AP21: 60.24832 | AQ21: 63.2951 | AR21: 72.77182 | AS21: 82.27758 | AT21: 0 | AU21: 0 | AV21: 9.5 | AW21: 32.910185 | AX21: 37.50516 | AY21: 39.406675 | AZ21: 42.1700125 | BA21: 52.71728 | BB21: 55.3832125 | BC21: 63.6753425 | BD21: 71.9928825 | BE21: 0 | BF21: 0 | BG21: 9.5 | BH21: 23.507275 | BI21: 26.7894 | BJ21: 28.147625 | BK21: 30.1214375 | BL21: 37.6552 | BM21: 39.5594375 | BN21: 45.4823875 | BO21: 51.4234875 | BP21: 0 | BQ21: 0 | BR21: 7.5 | BS21: 94.0291 | BT21: 107.1576 | BU21: 112.5905 | BV21: 120.48575 | BW21: 150.6208 | BX21: 158.23775 | BY21: 181.92955 | BZ21: 205.69395 | CA21: 0 | CB21: 0 | CC21: 7.5 | CD21: 0 | CE21: 0 | CF21: 0 | CG21: 0 | CH21: 0 | CI21: 0 | CJ21: 0 | CK21: 0 | CL21: 0 | CM21: 0
D22: 10 | E22: =+E49 -> 24.687025 | F22: 28.123425 | G22: 29.5497125 | H22: 31.6218375 | I22: 39.5307 | J22: 41.530225 | K22: 47.7481125 | L22: 53.9856625 | M22: 0 | N22: 0 | O22: 10 | P22: 98.7481 | Q22: 112.4937 | R22: 118.19885 | S22: 126.48735 | T22: 158.1228 | U22: 166.1209 | V22: 190.99245 | W22: 215.94265 | X22: 0 | Y22: 0 | Z22: 10 | AA22: 59.24886 | AB22: 67.49622 | AC22: 70.91931 | AD22: 75.89241 | AE22: 94.87368 | AF22: 99.67254 | AG22: 114.59547 | AH22: 129.56559 | AI22: 0 | AJ22: 0 | AK22: 10 | AL22: 39.49924 | AM22: 44.99748 | AN22: 47.27954 | AO22: 50.59494 | AP22: 63.24912 | AQ22: 66.44836 | AR22: 76.39698 | AS22: 86.37706 | AT22: 0 | AU22: 0 | AV22: 10 | AW22: 34.561835 | AX22: 39.372795 | AY22: 41.3695975 | AZ22: 44.2705725 | BA22: 55.34298 | BB22: 58.142315 | BC22: 66.8473575 | BD22: 75.5799275 | BE22: 0 | BF22: 0 | BG22: 10 | BH22: 24.687025 | BI22: 28.123425 | BJ22: 29.5497125 | BK22: 31.6218375 | BL22: 39.5307 | BM22: 41.530225 | BN22: 47.7481125 | BO22: 53.9856625 | BP22: 0 | BQ22: 0 | BR22: 8 | BS22: 98.7481 | BT22: 112.4937 | BU22: 118.19885 | BV22: 126.48735 | BW22: 158.1228 | BX22: 166.1209 | BY22: 190.99245 | BZ22: 215.94265 | CA22: 0 | CB22: 0 | CC22: 8 | CD22: 0 | CE22: 0 | CF22: 0 | CG22: 0 | CH22: 0 | CI22: 0 | CJ22: 0 | CK22: 0 | CL22: 0 | CM22: 0
D23: 10.1KG-30KG Add 1KG | E23: =+E50 -> 1.9965 | F23: 2.259675 | G23: 2.3716 | H23: 2.537975 | I23: 3.173225 | J23: 3.33355 | K23: 3.8357 | L23: 4.3318 | M23: 0 | N23: 0 | O23: 10.1KG-30KG Add 1KG | P23: 7.986 | Q23: 9.0387 | R23: 9.4864 | S23: 10.1519 | T23: 12.6929 | U23: 13.3342 | V23: 15.3428 | W23: 17.3272 | X23: 0 | Y23: 0 | Z23: 10.1KG-30KG Add 1KG | AA23: 4.7916 | AB23: 5.42322 | AC23: 5.69184 | AD23: 6.09114 | AE23: 7.61574 | AF23: 8.00052 | AG23: 9.20568 | AH23: 10.39632 | AI23: 0 | AJ23: 0 | AK23: 10.1KG-30KG Add 1KG | AL23: 3.1944 | AM23: 3.61548 | AN23: 3.79456 | AO23: 4.06076 | AP23: 5.07716 | AQ23: 5.33368 | AR23: 6.13712 | AS23: 6.93088 | AT23: 0 | AU23: 0 | AV23: 10.1KG-30KG Add 1KG | AW23: 2.7951 | AX23: 3.163545 | AY23: 3.32024 | AZ23: 3.553165 | BA23: 4.442515 | BB23: 4.66697 | BC23: 5.36998 | BD23: 6.06452 | BE23: 0 | BF23: 0 | BG23: 10.1KG-30KG Add 1KG | BH23: 1.9965 | BI23: 2.259675 | BJ23: 2.3716 | BK23: 2.537975 | BL23: 3.173225 | BM23: 3.33355 | BN23: 3.8357 | BO23: 4.3318 | BP23: 0 | BQ23: 0 | BR23: 8.5 | BS23: 7.986 | BT23: 9.0387 | BU23: 9.4864 | BV23: 10.1519 | BW23: 12.6929 | BX23: 13.3342 | BY23: 15.3428 | BZ23: 17.3272 | CA23: 0 | CB23: 0 | CC23: 8.5 | CD23: 0 | CE23: 0 | CF23: 0 | CG23: 0 | CH23: 0 | CI23: 0 | CJ23: 0 | CK23: 0 | CL23: 0 | CM23: 0
D24: 30.1KG-70KG Add 1KG | E24: =+E51 -> 1.914825 | F24: 2.1643875 | G24: 2.2732875 | H24: 2.4336125 | I24: 3.0416375 | J24: 3.1944 | K24: 3.6738625 | L24: 4.153325 | M24: 0 | N24: 0 | O24: 30.1KG-70KG Add 1KG | P24: 7.6593 | Q24: 8.65755 | R24: 9.09315 | S24: 9.73445 | T24: 12.16655 | U24: 12.7776 | V24: 14.69545 | W24: 16.6133 | X24: 0 | Y24: 0 | Z24: 30.1KG-70KG Add 1KG | AA24: 4.59558 | AB24: 5.19453 | AC24: 5.45589 | AD24: 5.84067 | AE24: 7.29993 | AF24: 7.66656 | AG24: 8.81727 | AH24: 9.96798 | AI24: 0 | AJ24: 0 | AK24: 30.1KG-70KG Add 1KG | AL24: 3.06372 | AM24: 3.46302 | AN24: 3.63726 | AO24: 3.89378 | AP24: 4.86662 | AQ24: 5.11104 | AR24: 5.87818 | AS24: 6.64532 | AT24: 0 | AU24: 0 | AV24: 30.1KG-70KG Add 1KG | AW24: 2.680755 | AX24: 3.0301425 | AY24: 3.1826025 | AZ24: 3.4070575 | BA24: 4.2582925 | BB24: 4.47216 | BC24: 5.1434075 | BD24: 5.814655 | BE24: 0 | BF24: 0 | BG24: 30.1KG-70KG Add 1KG | BH24: 1.914825 | BI24: 2.1643875 | BJ24: 2.2732875 | BK24: 2.4336125 | BL24: 3.0416375 | BM24: 3.1944 | BN24: 3.6738625 | BO24: 4.153325 | BP24: 0 | BQ24: 0 | BR24: 9 | BS24: 7.6593 | BT24: 8.65755 | BU24: 9.09315 | BV24: 9.73445 | BW24: 12.16655 | BX24: 12.7776 | BY24: 14.69545 | BZ24: 16.6133 | CA24: 0 | CB24: 0 | CC24: 9 | CD24: 0 | CE24: 0 | CF24: 0 | CG24: 0 | CH24: 0 | CI24: 0 | CJ24: 0 | CK24: 0 | CL24: 0 | CM24: 0
D25: Multiplier Rate per kilo | E25: =+E52 -> 2.0161625 | F25: 2.277825 | G25: 2.3912625 | H25: 2.55915 | I25: 3.197425 | J25: 3.35775 | K25: 3.8599 | L25: 4.365075 | M25: 0 | N25: 0 | O25: Multiplier Rate per kilo | P25: 8.06465 | Q25: 9.1113 | R25: 9.56505 | S25: 10.2366 | T25: 12.7897 | U25: 13.431 | V25: 15.4396 | W25: 17.4603 | X25: 0 | Y25: 0 | Z25: Multiplier Rate per kilo | AA25: 4.83879 | AB25: 5.46678 | AC25: 5.73903 | AD25: 6.14196 | AE25: 7.67382 | AF25: 8.0586 | AG25: 9.26376 | AH25: 10.47618 | AI25: 0 | AJ25: 0 | AK25: Multiplier Rate per kilo | AL25: 3.22586 | AM25: 3.64452 | AN25: 3.82602 | AO25: 4.09464 | AP25: 5.11588 | AQ25: 5.3724 | AR25: 6.17584 | AS25: 6.98412 | AT25: 0 | AU25: 0 | AV25: Multiplier Rate per kilo | AW25: 2.8226275 | AX25: 3.188955 | AY25: 3.3477675 | AZ25: 3.58281 | BA25: 4.476395 | BB25: 4.70085 | BC25: 5.40386 | BD25: 6.111105 | BE25: 0 | BF25: 0 | BG25: Multiplier Rate per kilo | BH25: 2.0161625 | BI25: 2.277825 | BJ25: 2.3912625 | BK25: 2.55915 | BL25: 3.197425 | BM25: 3.35775 | BN25: 3.8599 | BO25: 4.365075 | BP25: 0 | BQ25: 0 | BR25: 9.5 | BS25: 8.06465 | BT25: 9.1113 | BU25: 9.56505 | BV25: 10.2366 | BW25: 12.7897 | BX25: 13.431 | BY25: 15.4396 | BZ25: 17.4603 | CA25: 0 | CB25: 0 | CC25: 9.5 | CD25: 0 | CE25: 0 | CF25: 0 | CG25: 0 | CH25: 0 | CI25: 0 | CJ25: 0 | CK25: 0 | CL25: 0 | CM25: 0
E26: =+E53 -> KWT/IB/GMT | P26: KWT/IB/CST | AA26: KWT/IB/TST | AL26: KWT/IB/FST | AW26: KWT/IB/SMT | BH26: KWT/IB/GMT | BS26: BHIB/0619/PTA
D27: TRANSFER RATES TO MAIN SHEET | O27: CASH RATES | Z27: TELESALES TARIFF | AK27: FIELD SALES TARIFF | AV27: SALES MANAGER TARIFF | BG27: GENERAL MANAGER TARIFF
D28: TRANSFER RATES TO MAIN SHEET
E29: Z1 | F29: Z2 | G29: Z3 | H29: Z4 | I29: Z5 | J29: Z6 | K29: Z7 | L29: Z8 | M29: Z9 | N29: Z10
D30: 0.5 | E30: 5.175775 | F30: 6.05605 | G30: 6.35855 | H30: 6.8047375 | I30: 8.5063 | J30: 8.9313125 | K30: 10.2713875 | L30: 11.6084375 | M30: 0 | N30: 0
D31: 1 | E31: 5.629525 | F31: 6.5703 | G31: 6.8985125 | H31: 7.3825125 | I31: 9.229275 | J31: 9.6905875 | K31: 11.1441 | L31: 12.5945875 | M31: 0 | N31: 0
D32: 1.5 | E32: 6.083275 | F32: 7.08455 | G32: 7.438475 | H32: 7.9602875 | I32: 9.95225 | J32: 10.4498625 | K32: 12.0168125 | L32: 13.5807375 | M32: 0 | N32: 0
D33: 2 | E33: 6.537025 | F33: 7.5988 | G33: 7.9784375 | H33: 8.5380625 | I33: 10.675225 | J33: 11.2091375 | K33: 12.889525 | L33: 14.5668875 | M33: 0 | N33: 0
D34: 2.5 | E34: 6.990775 | F34: 8.11305 | G34: 8.5184 | H34: 9.1158375 | I34: 11.3982 | J34: 11.9684125 | K34: 13.7622375 | L34: 15.5530375 | M34: 0 | N34: 0
D35: 3 | E35: 8.170525 | F35: 9.447075 | G35: 9.9204875 | H35: 10.6162375 | I35: 13.2737 | J35: 13.9392 | K35: 16.0279625 | L35: 18.1152125 | M35: 0 | N35: 0
D36: 3.5 | E36: 9.350275 | F36: 10.7811 | G36: 11.322575 | H36: 12.1166375 | I36: 15.1492 | J36: 15.9099875 | K36: 18.2936875 | L36: 20.6773875 | M36: 0 | N36: 0
D37: 4 | E37: 10.530025 | F37: 12.115125 | G37: 12.7246625 | H37: 13.6170375 | I37: 17.0247 | J37: 17.880775 | K37: 20.5594125 | L37: 23.2395625 | M37: 0 | N37: 0
D38: 4.5 | E38: 11.709775 | F38: 13.44915 | G38: 14.12675 | H38: 15.1174375 | I38: 18.9002 | J38: 19.8515625 | K38: 22.8251375 | L38: 25.8017375 | M38: 0 | N38: 0
D39: 5 | E39: 12.889525 | F39: 14.783175 | G39: 15.5288375 | H39: 16.6178375 | I39: 20.7757 | J39: 21.82235 | K39: 25.0908625 | L39: 28.3639125 | M39: 0 | N39: 0
D40: 5.5 | E40: 14.069275 | F40: 16.1172 | G40: 16.930925 | H40: 18.1182375 | I40: 22.6512 | J40: 23.7931375 | K40: 27.3565875 | L40: 30.9260875 | M40: 0 | N40: 0
D41: 6 | E41: 15.249025 | F41: 17.451225 | G41: 18.3330125 | H41: 19.6186375 | I41: 24.5267 | J41: 25.763925 | K41: 29.6223125 | L41: 33.4882625 | M41: 0 | N41: 0
D42: 6.5 | E42: 16.428775 | F42: 18.78525 | G42: 19.7351 | H42: 21.1190375 | I42: 26.4022 | J42: 27.7347125 | K42: 31.8880375 | L42: 36.0504375 | M42: 0 | N42: 0
D43: 7 | E43: 17.608525 | F43: 20.119275 | G43: 21.1371875 | H43: 22.6194375 | I43: 28.2777 | J43: 29.7055 | K43: 34.1537625 | L43: 38.6126125 | M43: 0 | N43: 0
D44: 7.5 | E44: 18.788275 | F44: 21.4533 | G44: 22.539275 | H44: 24.1198375 | I44: 30.1532 | J44: 31.6762875 | K44: 36.4194875 | L44: 41.1747875 | M44: 0 | N44: 0
D45: 8 | E45: 19.968025 | F45: 22.787325 | G45: 23.9413625 | H45: 25.6202375 | I45: 32.0287 | J45: 33.647075 | K45: 38.6852125 | L45: 43.7369625 | M45: 0 | N45: 0
D46: 8.5 | E46: 21.147775 | F46: 24.12135 | G46: 25.34345 | H46: 27.1206375 | I46: 33.9042 | J46: 35.6178625 | K46: 40.9509375 | L46: 46.2991375 | M46: 0 | N46: 0
D47: 9 | E47: 22.327525 | F47: 25.455375 | G47: 26.7455375 | H47: 28.6210375 | I47: 35.7797 | J47: 37.58865 | K47: 43.2166625 | L47: 48.8613125 | M47: 0 | N47: 0
D48: 9.5 | E48: 23.507275 | F48: 26.7894 | G48: 28.147625 | H48: 30.1214375 | I48: 37.6552 | J48: 39.5594375 | K48: 45.4823875 | L48: 51.4234875 | M48: 0 | N48: 0
D49: 10 | E49: 24.687025 | F49: 28.123425 | G49: 29.5497125 | H49: 31.6218375 | I49: 39.5307 | J49: 41.530225 | K49: 47.7481125 | L49: 53.9856625 | M49: 0 | N49: 0
D50: 10.1KG-30KG Add 1KG | E50: 1.9965 | F50: 2.259675 | G50: 2.3716 | H50: 2.537975 | I50: 3.173225 | J50: 3.33355 | K50: 3.8357 | L50: 4.3318 | M50: 0 | N50: 0
D51: 30.1KG-70KG Add 1KG | E51: 1.914825 | F51: 2.1643875 | G51: 2.2732875 | H51: 2.4336125 | I51: 3.0416375 | J51: 3.1944 | K51: 3.6738625 | L51: 4.153325 | M51: 0 | N51: 0
D52: Multiplier Rate per kilo | E52: 2.0161625 | F52: 2.277825 | G52: 2.3912625 | H52: 2.55915 | I52: 3.197425 | J52: 3.35775 | K52: 3.8599 | L52: 4.365075 | M52: 0 | N52: 0
E53: KWT/IB/GMT
D54: GENERAL MANAGER TARIFF

Sheet Export & Import ZONE
A3: IMPORT ZONING
A4: Countries | B4: Zone | C4: Countries | D4: Zone | E4: Countries | F4: Zone | G4: Countries | H4: Zone
A5: Afghanistan | B5: 2 | C5: Dominican Rep. | D5: 8 | E5: Libya | F5: 8 | G5: San Marino | H5: 8
A6: Albania | B6: 4 | C6: Ecuador | D6: 8 | E6: Liechtenstein | F6: 4 | G6: Sao Tome And Principe (ST) | H6: 8
A7: Algeria | B7: 8 | C7: Egypt | D7: 2 | E7: Lithuania | F7: 7 | G7: Saudi Arabia | H7: 1
A8: American Samoa | B8: 8 | C8: El Salvador | D8: 8 | E8: Luxembourg | F8: 4 | G8: Senegal | H8: 8
A9: Andorra | B9: 8 | C9: Eritrea | D9: 8 | E9: Macau SAR China | F9: 8 | G9: Serbia, Rep. Of | H9: 4
A10: Angola | B10: 8 | C10: Estonia | D10: 7 | E10: Madagascar | F10: 8 | G10: Seychelles | H10: 8
A11: Anguilla | B11: 8 | C11: Eswatini | D11: 8 | E11: Malawi | F11: 8 | G11: Sierra Leone | H11: 8
A12: Antigua | B12: 8 | C12: Ethiopia | D12: 8 | E12: Malaysia | F12: 6 | G12: Singapore | H12: 6
A13: Argentina | B13: 8 | C13: Falkland Islands | D13: 8 | E13: Maldives | F13: 8 | G13: Slovakia | H13: 4
A14: Armenia | B14: 7 | C14: Faroe Islands | D14: 8 | E14: Mali | F14: 8 | G14: Slovenia | H14: 4
A15: Aruba | B15: 8 | C15: Fiji | D15: 8 | E15: Malta | F15: 4 | G15: Solomon Islands | H15: 8
A16: Australia | B16: 6 | C16: Finland | D16: 4 | E16: Mariana Islands | F16: 8 | G16: Somalia | H16: 8
A17: Austria | B17: 4 | C17: France | D17: 4 | E17: Marshall Islands | F17: 8 | G17: Somaliland, Rep Of | H17: 8
A18: Azerbaijan | B18: 7 | C18: French Guyana | D18: 8 | E18: Martinique | F18: 8 | G18: South Africa | H18: 8
A19: Bahamas | B19: 8 | C19: Gabon | D19: 8 | E19: Mauritania | F19: 8 | G19: South Sudan | H19: 8
A20: Bahrain | B20: 1 | C20: Gambia | D20: 8 | E20: Mauritius | F20: 8 | G20: Spain | H20: 4
A21: Bangladesh | B21: 3 | C21: Georgia | D21: 7 | E21: Mayotte | F21: 8 | G21: Sri Lanka | H21: 3
A22: Barbados | B22: 8 | C22: Germany | D22: 4 | E22: Mexico | F22: 5 | G22: St. Barthelemy | H22: 8
A23: Belarus | B23: 7 | C23: Ghana | D23: 8 | E23: Micronesia | F23: 8 | G23: St. Eustatius | H23: 8
A24: Belgium | B24: 4 | C24: Gibraltar | D24: 7 | E24: Moldova, Rep. Of | F24: 7 | G24: St. Kitts | H24: 8
A25: Belize | B25: 8 | C25: Greece | D25: 4 | E25: Monaco | F25: 4 | G25: St. Lucia | H25: 8
A26: Benin | B26: 8 | C26: Greenland | D26: 8 | E26: Mongolia | F26: 7 | G26: St. Maarten | H26: 8
A27: Bermuda | B27: 8 | C27: Grenada | D27: 8 | E27: Montenegro, Rep Of | F27: 7 | G27: St. Vincent | H27: 8
A28: Bhutan | B28: 6 | C28: Guadeloupe | D28: 8 | E28: Montserrat | F28: 8 | G28: Sudan | H28: 8
A29: Bolivia | B29: 8 | C29: Guam | D29: 8 | E29: Morocco | F29: 8 | G29: Suriname | H29: 8
A30: Bonaire | B30: 8 | C30: Guatemala | D30: 8 | E30: Mozambique | F30: 8 | G30: Sweden | H30: 4
A31: Bosnia & Herzegovina | B31: 4 | C31: Guernsey | D31: 4 | E31: Myanmar | F31: 6 | G31: Switzerland | H31: 4
A32: Botswana | B32: 8 | C32: Guinea Rep. | D32: 8 | E32: Namibia | F32: 8 | G32: Syria | H32: 8
A33: Brazil | B33: 8 | C33: Guinea-Bissau | D33: 8 | E33: Nauru, Rep. Of | F33: 8 | G33: Tahiti | H33: 8
A34: Brunei | B34: 6 | C34: Guinea-Equatorial | D34: 8 | E34: Nepal | F34: 3 | G34: Taiwan | H34: 6
A35: Bulgaria | B35: 4 | C35: Guyana (British) | D35: 8 | E35: Netherlands, The | F35: 4 | G35: Tajikistan | H35: 7
A36: Burkina Faso | B36: 8 | C36: Haiti | D36: 8 | E36: Nevis | F36: 8 | G36: Tanzania | H36: 8
A37: Burundi | B37: 8 | C37: Honduras | D37: 8 | E37: New Caledonia | F37: 8 | G37: Thailand | H37: 6
A38: Cambodia | B38: 6 | C38: Hong Kong SAR China | D38: 6 | E38: New Zealand | F38: 6 | G38: Timor-Leste | H38: 8
A39: Cameroon | B39: 8 | C39: Hungary | D39: 4 | E39: Nicaragua | F39: 8 | G39: Togo | H39: 8
A40: Canada | B40: 5 | C40: Iceland | D40: 8 | E40: Niger | F40: 8 | G40: Tonga | H40: 8
A41: Canary Islands, The | B41: 7 | C41: India | D41: 3 | E41: Nigeria | F41: 8 | G41: Trinidad And Tobago | H41: 8
A42: Cape Verde | B42: 8 | C42: Indonesia | D42: 6 | E42: Niue | F42: 8 | G42: Tunisia | H42: 8
A43: Cayman Islands | B43: 8 | C43: Iran | D43: 8 | E43: North Macedonia | F43: 4 | G43: Turkey | H43: 4
A44: Central African Rep | B44: 8 | C44: Iraq | D44: 2 | E44: Norway | F44: 4 | G44: Turkmenistan | H44: 7
A45: Chad | B45: 8 | C45: Ireland, Rep. Of | D45: 4 | E45: Oman | F45: 2 | G45: Turks & Caicos | H45: 8
A46: Chile | B46: 8 | C46: Italy | D46: 4 | E46: Pakistan | F46: 3 | G46: Tuvalu | H46: 8
A47: China | B47: 6 | C47: Jamaica | D47: 8 | E47: Palau | F47: 8 | G47: USA | H47: 5
A48: Colombia | B48: 8 | C48: Japan | D48: 6 | E48: Panama | F48: 8 | G48: Uganda | H48: 8
A49: Comoros | B49: 8 | C49: Jersey | D49: 4 | E49: Papua New Guinea | F49: 6 | G49: Ukraine | H49: 7
A50: Congo | B50: 8 | C50: Jordan | D50: 2 | E50: Paraguay | F50: 8 | G50: United Arab Emirates | H50: 1
A51: Congo, DPR | B51: 8 | C51: Kazakhstan | D51: 7 | E51: Peru | F51: 8 | G51: United Kingdom | H51: 4
A52: Cook Islands | B52: 8 | C52: Kenya | D52: 8 | E52: Philippines, The | F52: 6 | G52: Uruguay | H52: 8
A53: Costa Rica | B53: 8 | C53: Kiribati | D53: 8 | E53: Poland | F53: 4 | G53: Uzbekistan | H53: 7
A54: Cote D Ivoire | B54: 8 | C54: Korea, Rep. Of | D54: 6 | E54: Portugal | F54: 4 | G54: Vanuatu | H54: 8
A55: Croatia | B55: 4 | C55: Korea, D.P.R Of | D55: 8 | E55: Puerto Rico | F55: 8 | G55: Vatican City | H55: 4
A56: Cuba | B56: 8 | C56: Kosovo | D56: 8 | E56: Qatar | F56: 2 | G56: Venezuela | H56: 8
A57: Curacao | B57: 8 | C57: Kyrgyzstan | D57: 7 | E57: Reunion, Island Of | F57: 8 | G57: Vietnam | H57: 6
A58: Cyprus | B58: 4 | C58: Laos | D58: 6 | E58: Romania | F58: 4 | G58: Virgin Islands-British | H58: 8
A59: Czech Rep., The | B59: 4 | C59: Latvia | D59: 7 | E59: Russian Federation | F59: 7 | G59: Virgin Islands-US | H59: 8
A60: Denmark | B60: 4 | C60: Lebanon | D60: 2 | E60: Rwanda | F60: 8 | G60: Yemen, Rep. Of | H60: 8
A61: Djibouti | B61: 8 | C61: Lesotho | D61: 8 | E61: Saint Helena | F61: 8 | G61: Zambia | H61: 8
A62: Dominica | B62: 8 | C62: Liberia | D62: 8 | E62: Samoa | F62: 8 | G62: Zimbabwe | H62: 8
